fUST/lending_fUST_20260203
["ID","MTS","AMOUNT","RATE_DAILY","PERIOD"]
[404414529,1770119440293,-862.28632432,0.00092995,120]
[404414531,1770119440304,-2556.93,0.00093145,120]
[404414533,1770119440313,-500.0,0.00093145,120]
[404414535,1770119440322,-621.36449847,0.00093145,120]
[404414537,1770119440331,-500.0,0.0009315,120]
[404414539,1770119440341,-537.21,0.0009315,30]
[404414541,1770119440350,-582.23,0.0009315,120]
[404414543,1770119440359,-1989.26,0.0009315,120]
[404414545,1770119440368,-500.0,0.0009315,120]
[404414547,1770119440379,-500.0,0.0009315,120]
[404414549,1770119440387,-500.0,0.00096291,120]
[404414551,1770119440396,-150.0,0.0009835,120]
[404414553,1770119440407,-500.0,0.0009835,120]
[404414555,1770119440416,-500.0,0.0009835,120]
[404414557,1770119440427,-500.0,0.0009835,120]
[404414560,1770119440437,-150.0,0.0009835,120]
[404414561,1770119440446,-500.0,0.0009835,120]
[404414563,1770119440455,-500.0,0.0009835,120]
[404414565,1770119440464,-201.59957773,0.0009835,120]
[404414567,1770119440473,-2556.93,0.00098624,120]
[404414569,1770119440482,-500.0,0.00098624,120]
[404414571,1770119440491,-500.0,0.0009863,120]
[404414573,1770119440500,-537.21,0.0009863,30]
[404414575,1770119440509,-582.23,0.0009863,120]
[404414577,1770119440519,-1989.26,0.0009863,120]
[404414579,1770119440528,-500.0,0.0009863,120]
[404414581,1770119440538,-500.0,0.0009863,120]
[404414583,1770119440547,-234.32409863,0.00098634,2]
[404414585,1770119440556,-266.28,0.00099474,120]
[404414587,1770119440565,-344.35558611,0.0009999,14]
[404414589,1770119440574,-1000.0,0.001,7]
[404414599,1770119440653,-165.93101424,0.00101671,120]
[404414601,1770119440663,-500.0,0.00101771,120]
[404414603,1770119440671,-2556.93,0.00104104,120]
[404414605,1770119440680,-500.0,0.00104104,120]
[404414607,1770119440689,-500.0,0.00104109,120]
[404414609,1770119440698,-537.21,0.00104109,30]
[404414611,1770119440710,-582.23,0.00104109,120]
[404414613,1770119440720,-1989.26,0.00104109,120]
[404414615,1770119440729,-500.0,0.00104109,120]
[404414617,1770119440738,-500.0,0.00104109,120]
[404414618,1770119440749,-500.0,0.0010725,120]
[404414621,1770119440758,-234.32409863,0.00109196,2]
[404414622,1770119440767,-2556.93,0.00109583,120]
[404414624,1770119440776,-500.0,0.00109583,120]
[404414627,1770119440787,-500.0,0.00109589,120]
[404414629,1770119440796,-537.21,0.00109589,30]
[404414630,1770119440805,-582.23,0.00109589,120]
[404414632,1770119440815,-1989.26,0.00109589,120]
[404414634,1770119440826,-500.0,0.00109589,120]
[404414636,1770119440837,-500.0,0.00109589,120]
[404414638,1770119440846,-631.11000015,0.0011,120]
[404414640,1770119440855,-600.0,0.00111674,120]
[404414642,1770119440864,-500.0,0.0011273,120]
[404414644,1770119440873,-574.021,0.00114,120]
[404414646,1770119440882,-150.0,0.00114,120]
[404414648,1770119440891,-679.382001,0.00114,120]
[404414650,1770119440900,-1208.764003,0.00114,120]
[404414652,1770119440909,-1738.146005,0.00114,120]
[404414654,1770119440918,-2267.528006,0.00114,120]
[404414656,1770119440927,-2796.910008,0.00114,120]
[404414658,1770119440936,-3326.29201,0.00114,120]
[404414660,1770119440945,-3855.674011,0.00114,120]
[404414662,1770119440955,-4385.056013,0.00114,120]
[404414664,1770119440964,-4914.438015,0.00114,120]
[404414666,1770119440974,-20000.0,0.001145,120]
[404414668,1770119440983,-20000.0,0.00115,120]
[404414670,1770119440992,-175.7,0.00115053,120]
[404414672,1770119441002,-878.54,0.00115053,120]
[404414674,1770119441010,-344.35558611,0.00115058,19]
[404414676,1770119441019,-2556.93,0.00115063,120]
[404414678,1770119441028,-500.0,0.00115063,120]
[404414680,1770119441037,-500.0,0.00115068,120]
[404414682,1770119441047,-537.21,0.00115068,30]
[404414684,1770119441056,-582.23,0.00115068,120]
[404414686,1770119441065,-1989.26,0.00115068,120]
[404414687,1770119441074,-500.0,0.00115068,120]
[404414689,1770119441083,-500.0,0.00115068,120]
[404414691,1770119441094,-20000.0,0.001155,120]
[404414693,1770119441106,-20000.0,0.0011601,120]
[404414695,1770119441117,-13987.4145794,0.0011764,23]
[404414698,1770119441127,-3474.2753488,0.0011764,23]
[404414699,1770119441136,-500.0,0.00118209,120]
[404414701,1770119441147,-150.0,0.00118679,120]
[404414703,1770119441156,-239.113711,0.00118679,120]
[404414705,1770119441165,-328.227422,0.00118679,120]
[404414707,1770119441174,-417.341133,0.00118679,120]
[404414709,1770119441183,-506.454844,0.00118679,120]
[404414711,1770119441192,-595.568555,0.00118679,120]
[404414713,1770119441201,-684.682266,0.00118679,120]
[404414715,1770119441211,-773.795977,0.00118679,120]
[404414717,1770119441220,-862.909688,0.00118679,120]
[404414719,1770119441229,-952.023399,0.00118679,120]
[404414721,1770119441238,-234.32409863,0.00119758,2]
[404414723,1770119441247,-250.0,0.00119999,120]
[404414725,1770119441256,-250.0,0.00119999,120]
[404414727,1770119441265,-250.0,0.00119999,120]
[404414729,1770119441274,-250.0,0.00119999,120]
[404414731,1770119441283,-250.0,0.00119999,120]
[404414733,1770119441292,-250.0,0.00119999,120]
[404414735,1770119441301,-250.0,0.00119999,120]
[404414737,1770119441311,-250.0,0.00119999,120]
[404414739,1770119441320,-250.0,0.00119999,120]
[404414741,1770119441329,-250.0,0.00119999,120]
[404414743,1770119441338,-250.0,0.00119999,120]
[404414744,1770119441347,-250.0,0.00119999,120]
[404414746,1770119441356,-250.0,0.00119999,120]
[404414748,1770119441365,-250.0,0.00119999,120]
[404414750,1770119441374,-250.0,0.00119999,120]
[404414752,1770119441383,-250.0,0.00119999,120]
[404414754,1770119441392,-250.0,0.00119999,120]
[404414756,1770119441400,-250.0,0.00119999,120]
[404414758,1770119441409,-250.0,0.00119999,120]
[404414760,1770119441418,-250.0,0.00119999,120]
[404414762,1770119441427,-240.0,0.0012,120]
[404414764,1770119441436,-240.0,0.0012,120]
[404414766,1770119441445,-2556.93,0.00120542,120]
[404414768,1770119441455,-500.0,0.00120542,120]
[404414769,1770119441463,-500.0,0.00120547,120]
[404414771,1770119441472,-537.21,0.00120547,30]
[404414773,1770119441481,-582.23,0.00120547,120]
[404414775,1770119441490,-1989.26,0.00120547,120]
[404414777,1770119441499,-500.0,0.00120547,120]
[404414779,1770119441508,-500.0,0.00120547,120]
[404414781,1770119441517,-720.0,0.00122841,120]
[404414783,1770119441526,-500.0,0.00123689,120]
[404414785,1770119441535,-346.354896,0.00124483,120]
[404414787,1770119441544,-3000.0,0.001245,120]
[404414789,1770119441554,-2556.93,0.00126021,120]
[404414791,1770119441563,-500.0,0.00126021,120]
[404414793,1770119441572,-500.0,0.00126027,120]
[404414794,1770119441581,-537.21,0.00126027,30]
[404414796,1770119441590,-582.23,0.00126027,120]
[404414798,1770119441599,-1989.26,0.00126027,120]
[404414800,1770119441608,-441.534088,0.00126027,120]
[404414802,1770119441617,-500.0,0.00126027,120]
[404414804,1770119441627,-344.35558611,0.00127298,23]
[404414806,1770119441636,-500.0,0.00129168,120]
[404414808,1770119441645,-3948.7816,0.001299,120]
[404414810,1770119441655,-234.32409863,0.0013032,2]
[404414812,1770119441664,-2556.93,0.00131501,120]
[404414814,1770119441674,-500.0,0.00131506,120]
[404414816,1770119441683,-537.21,0.00131506,30]
[404414818,1770119441692,-582.23,0.00131506,120]
[404414820,1770119441701,-1989.26,0.00131506,120]
[404414822,1770119441713,-500.0,0.00131506,120]
[404414824,1770119441723,-3121.0140551,0.00132867,29]
[404414826,1770119441731,-3000.0,0.001342,120]
[404414827,1770119441740,-500.0,0.00134647,120]
[404414829,1770119441749,-864.0,0.00135125,120]
[404414831,1770119441759,-696.3923659,0.00136264,30]
[404414833,1770119441767,-1040.0,0.00136712,120]
[404414835,1770119441776,-344.35558611,0.00136976,26]
[404414837,1770119441786,-2556.93,0.0013698,120]
[404414839,1770119441795,-500.0,0.00136986,120]
[404414841,1770119441804,-500.0,0.00136986,120]
[404414842,1770119441813,-500.0,0.00136986,120]
[404414844,1770119441822,-500.0,0.00136986,120]
[404414846,1770119441831,-500.0,0.00136986,120]
[404414848,1770119441841,-500.0,0.00136986,120]
[404414850,1770119441850,-499.81879395,0.00136986,120]
[404414852,1770119441863,-537.21,0.00136986,30]
[404414854,1770119441872,-582.23,0.00136986,120]
[404414856,1770119441881,-1989.26,0.00136986,120]
[404414857,1770119441890,-158.49688178,0.00136986,120]
[404414858,1770119441898,-500.0,0.00136986,120]
[404414859,1770119441908,-260.10432,0.00136986,120]
[404414860,1770119441917,-15000.0,0.00137,120]
[404414861,1770119441926,-283.3904836,0.001379,120]
[404414862,1770119441935,-688.71117222,0.00137985,26]
[404414863,1770119441943,-160.183731,0.00137995,120]
[404414864,1770119441953,-20000.0,0.001389,120]
[404414865,1770119441966,-231605.61741414,0.00138949,120]
[404414867,1770119441988,-3192.99353666,0.00138949,120]
[404414869,1770119441999,-17780.17329931,0.00138949,120]
[404414871,1770119442010,-17376.42781309,0.00138995,120]
[404415086,1770119444363,-1262.70776101,0.00138995,120]
[404415087,1770119444375,-11930.88642027,0.00138995,120]
[404415088,1770119444386,-608.42003136,0.00138995,120]
[404415119,1770119444994,-309.73,0.00138995,120]
[404415142,1770119446302,-14443.08524007,0.00138995,120]
[404415143,1770119446408,-300.0,0.00138995,120]
[404415144,1770119446460,-874.25259224,0.00138995,120]
[404415145,1770119446472,-2769.49731269,0.00138995,120]
[404415146,1770119463580,500.0,0.00013699,2]
[404415147,1770119463610,1091.88014411,0.00014247,2]
[404415148,1770119472762,500.0,0.00013699,2]
[404415149,1770119478070,500.0,0.00013273,2]
[404415150,1770119478123,1000.0,0.00013821,2]
[404415151,1770119478176,1500.0,0.00014368,2]
[404415152,1770119478234,500.0,0.00014916,2]
[404415153,1770119478444,500.0,0.00013699,2]
[404415154,1770119478499,511.95718996,0.00014247,2]
[404415155,1770119583938,487.08872793,0.00013273,2]
[404415156,1770119584115,500.0,0.00013273,2]
[404415157,1770119585024,432.63444936,0.00013273,2]
[404415158,1770119585048,67.36555064,0.00013273,2]
[404415159,1770119594076,619.58988389,0.00013273,2]
[404415160,1770119595326,500.0,0.00013699,2]
[404415161,1770119595374,1000.0,0.00014247,2]
[404415162,1770119595432,1500.0,0.00014795,2]
[404415163,1770119595487,253.06435971,0.00015342,2]
[404415164,1770119600175,500.0,0.00013273,2]
[404415165,1770119600229,1000.0,0.00013821,2]
[404415166,1770119600308,300.0,0.00013673,2]
[404415167,1770119723009,561.22050956,0.00013273,2]
[404415168,1770119823174,400.26816814,0.00013273,2]
[404415169,1770119823204,500.0,0.00013273,2]
[404415170,1770119823233,500.0,0.00013273,2]
[404415171,1770119823350,166.87181634,0.00013273,2]
[404415172,1770119830812,500.0,0.00013273,2]
[404415173,1770119952362,500.0,0.00013821,2]
[404415174,1770119952409,500.0,0.00013273,2]
[404415175,1770120200453,10000.0,0.00015985,2]
[404415176,1770120209802,0.01,0.00015985,2]
[404415177,1770120209823,9999.99,0.00015985,2]
[404415178,1770120223397,0.02,0.00015985,2]
[404415179,1770120223418,9999.98,0.00015985,2]
[404415180,1770120245325,0.03,0.00013699,2]
[404415181,1770120245347,500.30977898,0.00013699,2]
[404415182,1770120245518,500.0,0.00013273,2]
[404415183,1770120245675,1000.0,0.00013821,2]
[404415184,1770120245701,1500.0,0.00014368,2]
[404415185,1770120245733,2000.0,0.00014916,2]
[404415186,1770120245758,2500.0,0.00015464,2]
[404415187,1770120249986,510.73383861,0.00013273,2]
[404415188,1770120253671,500.19982092,0.00013273,2]
[404415189,1770120256620,500.0,0.00013699,2]
[404415190,1770120276357,488.76656149,0.00015985,2]
[404415191,1770120276382,9511.23343851,0.00015985,2]
[404415192,1770120283491,488.77656149,0.00015985,2]
[404415193,1770120283513,9511.22343851,0.00015985,2]
[404415194,1770120314014,488.78656149,0.00013273,2]
[404415195,1770120314038,11.21343851,0.00013273,2]
[404415196,1770120314071,1000.0,0.00013821,2]
[404415197,1770120314121,1500.0,0.00014368,2]
[404415198,1770120314174,987.72506536,0.00014916,2]
[404415199,1770120364012,500.0,0.00013699,2]
[404415200,1770120364042,500.0,0.00013699,2]
[404415201,1770120364072,1002.08830779,0.00014247,2]
[404415202,1770120364098,1000.0,0.00014247,2]
[404415203,1770120364131,501.61509767,0.00014795,2]
[404415204,1770120364895,422.13878715,0.00013699,2]
[404415205,1770120365064,500.0,0.00013273,2]
[404415206,1770120365092,1000.0,0.00013821,2]
[404415207,1770120365141,1058.96734286,0.00014368,2]
[404415208,1770120367714,16.26196066,0.00013273,2]
[404415209,1770120367737,487.25914615,0.00013273,2]
[404415210,1770120411549,9512.75085385,0.00015985,2]
[404415211,1770120411569,487.24914615,0.00015985,2]
[404415212,1770120421146,9512.76085385,0.00015985,2]
[404415213,1770120421167,487.23914615,0.00015985,2]
[404415214,1770120431395,9512.77085385,0.00015985,2]
[404415215,1770120432760,-487.22914615,0.00015985,2]
[404415216,1770120544496,487.08872793,0.00013273,2]
[404415217,1770120564984,9512.92127207,1e-06,2]
[404415218,1770120565014,10000.01,1e-06,2]
[404415219,1770120565039,10000.01,1e-06,2]
[404415220,1770120565066,1995.54944575,1e-06,2]
[404415221,1770120603081,500.0,0.00013699,2]
[404415222,1770120611268,500.0,0.00013699,2]
[404415223,1770120613323,500.0,0.00013699,2]
[404415224,1770120613923,500.82078053,0.00013699,2]
[404415225,1770120616248,500.0,0.00014247,2]
[404415226,1770120616308,500.0,0.00013699,2]
[404415282,1770120638263,-1172.0,0.00030314,2]
[404415284,1770120638272,-3013.59729105,0.00030315,2]
[404415287,1770120638284,-1986.40270895,0.00030315,2]
[404415289,1770120638295,-448.7717694,0.00030315,2]
[404415291,1770120638306,-488.2282306,0.00030315,2]
[404415293,1770120638316,-300.0,0.0003062,2]
[404415295,1770120638325,-3676.63907739,0.00030621,2]
[404415297,1770120638336,-1323.36092261,0.00030621,2]
[404415299,1770120638346,-233.55702852,0.00030621,2]
[404415301,1770120638356,-178.9,0.000322,2]
[404415303,1770120638365,-233.55702852,0.00041289,2]
[404415305,1770120638375,-3120.2905275,0.00051365,2]
[404415307,1770120638383,-381.562897,0.000521,2]
[404415309,1770120638393,-500.0,0.00054794,120]
[404415311,1770120638403,-500.0,0.00054794,30]
[404415313,1770120638412,-500.0,0.00054794,120]
[404415315,1770120638421,-1329.434,0.00054795,120]
[404415317,1770120638430,-500.0,0.00055888,7]
[404415319,1770120638440,-500.0,0.00055888,120]
[404415321,1770120638449,-563.94158432,0.00055888,31]
[404415323,1770120638459,-500.0,0.00055888,7]
[404415325,1770120638468,-500.0,0.00055888,120]
[404415326,1770120638478,-201.9897651,0.00055888,7]
[404415328,1770120638487,-467.43309035,0.00055888,120]
[404415330,1770120638496,-600.0,0.00055889,120]
[404415332,1770120638505,-500.0,0.00060272,120]
[404415335,1770120638516,-637.38,0.00060272,120]
[404415336,1770120638525,-500.0,0.00060272,90]
[404415339,1770120638534,-500.0,0.00060272,120]
[404415341,1770120638545,-500.0,0.00060273,120]
[404415342,1770120638554,-500.0,0.00060273,30]
[404415345,1770120638563,-500.0,0.00061477,120]
[404415346,1770120638572,-1326.17,0.00061477,120]
[404415349,1770120638582,-500.0,0.00061477,120]
[404415350,1770120638592,-560.06,0.00061477,120]
[404415352,1770120638601,-720.0,0.00061478,120]
[404415354,1770120638610,-238.168,0.00061478,120]
[404415356,1770120638619,-237.57941045,0.00063496,120]
[404415358,1770120638629,-7850.76198606,0.00065652,28]
[404415361,1770120638638,-500.0,0.00065752,120]
[404415362,1770120638647,-500.0,0.00065752,120]
[404415364,1770120638656,-500.0,0.00065753,30]
[404415366,1770120638666,-740.91124423,0.0006672,2]
[404415368,1770120638676,-1326.17,0.00066957,120]
[404415370,1770120638686,-560.06,0.00066957,120]
[404415373,1770120638696,-864.0,0.00067626,120]
[404415375,1770120638706,-500.0,0.00071231,120]
[404415376,1770120638716,-500.0,0.00071231,120]
[404415378,1770120638727,-500.0,0.00071232,30]
[404415381,1770120638736,-1326.17,0.00072436,120]
[404415392,1770120638833,-560.06,0.00072436,120]
[404415394,1770120638843,-233.55702852,0.00073292,2]
[404415396,1770120638853,-1000.0,0.00074388,120]
[404415398,1770120638863,-500.0,0.0007671,120]
[404415400,1770120638872,-500.0,0.0007671,120]
[404415402,1770120638882,-500.0,0.00076712,30]
[404415404,1770120638891,-193.58618329,0.00077898,120]
[404415406,1770120638901,-1326.17,0.00077916,120]
[404415408,1770120638910,-560.06,0.00077916,120]
[404415410,1770120638919,-2376.84,0.00077998,120]
[404415412,1770120638929,-500.0,0.00077998,120]
[404415414,1770120638938,-500.0,0.00077998,120]
[404415416,1770120638947,-500.0,0.00077998,120]
[404415418,1770120638956,-500.0,0.00077998,120]
[404415420,1770120638965,-500.0,0.00077998,120]
[404415422,1770120638975,-500.0,0.00077998,120]
[404415424,1770120638984,-500.0,0.00077998,120]
[404415426,1770120638993,-500.0,0.00077998,2]
[404415428,1770120639002,-500.0,0.00077998,120]
[404415430,1770120639011,-500.0,0.00077998,120]
[404415432,1770120639020,-500.0,0.00077998,120]
[404415434,1770120639029,-495.46971497,0.00077999,120]
[404415436,1770120639038,-500.0,0.00077999,2]
[404415438,1770120639048,-20000.0,0.00078,120]
[404415440,1770120639058,-381.562897,0.00078151,30]
[404415442,1770120639067,-193.58618328,0.00078399,120]
[404415444,1770120639076,-312.95845914,0.0007849,7]
[404415446,1770120639085,-500.0,0.00078499,2]
[404415448,1770120639094,-20000.0,0.000785,120]
[404415450,1770120639104,-878.54,0.0007889,30]
[404415451,1770120639116,-209.47509151,0.0007889,50]
[404415453,1770120639125,-625.91691828,0.0007889,7]
[404415455,1770120639134,-100000.0,0.000789,120]
[404415457,1770120639144,-193.58618328,0.000789,120]
[404415459,1770120639155,-175.7,0.0007899,30]
[404415461,1770120639176,-938.87537742,0.0007899,7]
[404415463,1770120639187,-500.0,0.00078999,2]
[404415465,1770120639196,-500.0,0.00078999,2]
[404415467,1770120639207,-500.0,0.00078999,2]
[404415470,1770120639218,-20000.0,0.00079,120]
[404415472,1770120639228,-20000.0,0.00079,120]
[404415473,1770120639237,-20000.0,0.00079,120]
[404415475,1770120639247,-100000.0,0.00079,120]
[404415477,1770120639260,-312.95845914,0.0007904,7]
[404415479,1770120639269,-500.0,0.00079049,2]
[404415481,1770120639279,-20000.0,0.0007905,120]
[404415483,1770120639288,-500.0,0.00079059,2]
[404415486,1770120639299,-20000.0,0.0007906,120]
[404415488,1770120639310,-500.0,0.00079099,2]
[404415490,1770120639320,-20000.0,0.000791,120]
[404415491,1770120639330,-312.95845914,0.0007919,7]
[404415493,1770120639339,-500.0,0.00079199,2]
[404415495,1770120639349,-20000.0,0.000792,120]
[404415498,1770120639359,-500.0,0.00079499,2]
[404415499,1770120639370,-20000.0,0.000795,120]
[404415501,1770120639379,-1000.0,0.00081827,120]
[404415504,1770120639389,-244.0,0.00081827,120]
[404415505,1770120639399,-500.0,0.0008219,120]
[404415507,1770120639408,-500.0,0.0008219,120]
[404415509,1770120639417,-500.0,0.00082191,30]
[404415511,1770120639426,-1326.17,0.00083395,120]
[404415513,1770120639436,-560.06,0.00083395,120]
[404415515,1770120639445,-2376.84,0.00083478,120]
[404415517,1770120639455,-500.0,0.00083478,120]
[404415519,1770120639465,-500.0,0.00083478,120]
[404415521,1770120639475,-500.0,0.00083478,120]
[404415524,1770120639485,-500.0,0.00083478,120]
[404415525,1770120639495,-500.0,0.00083478,120]
[404415527,1770120639504,-500.0,0.00083478,120]
[404415529,1770120639515,-500.0,0.00083478,120]
[404415531,1770120639525,-233.55702852,0.0008396,2]
[404415533,1770120639534,-312.95845914,0.00087659,10]
[404415535,1770120639544,-500.0,0.00087669,120]
[404415537,1770120639558,-500.0,0.00087669,120]
[404415539,1770120639567,-500.0,0.00087671,30]
[404415541,1770120639576,-1326.17,0.00088875,120]
[404415543,1770120639585,-560.06,0.00088875,120]
[404415545,1770120639594,-2376.84,0.00088957,120]
[404415547,1770120639603,-500.0,0.00088957,120]
[404415549,1770120639611,-500.0,0.00088957,120]
[404415551,1770120639620,-503.28007,0.00088957,120]
[404415553,1770120639629,-500.0,0.00088957,120]
[404415555,1770120639638,-500.0,0.00088957,120]
[404415557,1770120639647,-160.183731,0.00088957,120]
[404415559,1770120639656,-500.0,0.00088957,120]
[404415561,1770120639665,-1000.0,0.0009001,120]
[404415563,1770120639674,-492.0,0.0009001,120]
[404415565,1770120639683,-500.0,0.00093149,120]
[404415568,1770120639695,-500.0,0.00093149,120]
[404415569,1770120639704,-500.0,0.0009315,30]
[404415571,1770120639713,-1326.17,0.00094354,120]
[404415573,1770120639722,-560.06,0.00094354,120]
[404415575,1770120639731,-2376.84,0.00094436,120]
[404415577,1770120639740,-500.0,0.00094436,120]
[404415579,1770120639749,-280.55,0.00094436,120]
[404415582,1770120639759,-500.0,0.00094436,120]
[404415584,1770120639769,-500.0,0.00094436,120]
[404415585,1770120639778,-500.0,0.00094436,120]
[404415588,1770120639787,-345.76,0.000945,30]
[404415589,1770120639796,-233.55702852,0.00094627,2]
[404415590,1770120639805,-1000.0,0.00098,120]
[404415591,1770120639815,-500.0,0.00098628,120]
[404415592,1770120639824,-500.0,0.00098628,120]
[404415593,1770120639832,-500.0,0.0009863,30]
[404415594,1770120639841,-1000.0,0.00099011,120]
[404415595,1770120639850,-791.0,0.00099011,120]
[404415596,1770120639859,-1326.17,0.00099833,120]
[404415597,1770120639868,-560.06,0.00099833,120]
[404415598,1770120639877,-2376.84,0.00099916,120]
[404415599,1770120639886,-210.78034765,0.00099916,120]
[404415600,1770120639895,-500.0,0.00099916,120]
[404415601,1770120639904,-500.0,0.00099916,120]
[404415602,1770120639913,-500.0,0.00099916,120]
[404415603,1770120639922,-1500.0,0.001,120]
[404415604,1770120639931,-500.0,0.00104108,120]
[404415605,1770120639939,-500.0,0.00104108,120]
[404415606,1770120639948,-500.0,0.00104109,30]
[404415607,1770120639957,-233.55702852,0.00105295,2]
[404415608,1770120639966,-1326.17,0.00105313,120]
[404415609,1770120639975,-560.06,0.00105313,120]
[404415610,1770120639984,-2376.84,0.00105395,120]
[404415611,1770120639993,-500.0,0.00105395,120]
[404415612,1770120640001,-500.0,0.00105395,120]
[404415613,1770120640010,-500.0,0.00105395,120]
[404415614,1770120640019,-1000.0,0.00108912,120]
[404415616,1770120640029,-209.66045159,0.00108912,120]
[404416132,1770120645209,-300.0,0.00108912,120]
[404416151,1770120647502,-490.33954841,0.00108912,120]
[404416152,1770120647512,-500.0,0.00109587,120]
[404416153,1770120647598,-500.0,0.00109587,120]
[404416154,1770120647616,-500.0,0.00109588,2]
[404416155,1770120647625,-500.0,0.00109589,30]
[404416156,1770120647635,-151.0,0.00109589,120]
[404416157,1770120647644,-151.0,0.00109589,120]
[404416158,1770120647654,-151.0,0.00109589,120]
[404416159,1770120647663,-190.64288,0.00109589,120]
[404416160,1770120647672,-631.11000015,0.00109589,120]
[404416161,1770120647682,-564.46,0.00109589,120]
[404416162,1770120647691,-564.46,0.00109589,120]
[404416163,1770120647700,-564.46,0.00109589,120]
[404416164,1770120647710,-564.46,0.00109589,120]
[404416165,1770120647719,-564.46,0.00109589,120]
[404416166,1770120647728,-485.06376815,0.00109589,120]
[404416167,1770120664163,500.0,0.00013273,2]
[404416168,1770120668102,500.0,0.00013699,2]
[404416169,1770120675803,500.0,0.00013273,2]
[404416170,1770120676984,500.0,0.00013699,2]
[404416171,1770120678539,254.63086843,0.00013273,2]
[404416172,1770120683874,500.0,0.00013273,2]
[404416173,1770120683926,733.2567082,0.00013821,2]
[404416174,1770120723941,1000.0,0.00013821,2]
[404416175,1770120724001,1487.45856891,0.00014368,2]
[404416176,1770120724065,500.0,0.00013273,2]
[404416177,1770120726829,500.0,0.00013273,2]
[404416178,1770120733275,500.0,0.00013273,2]
[404416179,1770120783993,180.83148737,0.00013273,2]
[404416180,1770120784026,500.0,0.00013273,2]
[404416181,1770120784064,596.1040109,0.00013821,2]
[404416182,1770120786784,500.0,0.00013273,2]
[404416183,1770120786844,747.72835619,0.00013821,2]
[404416184,1770120786865,252.27164381,0.00013821,2]
[404416185,1770120786900,1500.0,0.00014368,2]
[404416186,1770120786952,306.51743148,0.00014916,2]
[404416187,1770120787240,399.75562085,0.00013273,2]
[404416189,1770120904235,500.0,0.00013273,2]
[404416190,1770120905516,1000.0,0.00013821,2]
[404416191,1770120905573,819.92248654,0.00014368,2]
[404416192,1770120906881,500.0,0.00013273,2]
[404416193,1770120907390,500.0,0.00013273,2]
[404416194,1770120907554,500.0,0.00013273,2]
[404416196,1770121023242,500.0,0.00013273,2]
[404416197,1770121023398,222.8707806,0.00013273,2]
[404416198,1770121027802,500.0,0.00013273,2]
[404416202,1770121143376,502.30333023,0.00013821,2]
[404416203,1770121145756,150.16357316,0.00013699,2]
[404416204,1770121147275,500.0,0.00013273,2]
[404416205,1770121264068,500.0,0.00013273,2]
[404416206,1770121264172,500.0,0.00013273,2]
[404416207,1770121264363,500.0,0.00013273,2]
[404416243,1770121503848,339.92501183,0.00013273,2]
[404416248,1770121719300,507.3792008,0.000135,2]
[404416249,1770121743988,500.0,0.00013273,2]
[404416250,1770121744049,596.1040109,0.00013821,2]
[404416251,1770121744105,180.83148737,0.00013273,2]
[404416252,1770121783508,-4612.59354459,0.00015,2]